[Event "V Open Semana Santa Alicante 2021"]
[Site "Alicante"]
[Date "2021.04.03"]
[Round "6.10"]
[White "Revaliente Montoya, Ciro"]
[Black "Carbonell Sancho, Marc"]
[Result "1/2-1/2"]
[ECO "B07"]
[WhiteElo "2128"]
[BlackElo "2330"]
[Annotator "NA"]
[PlyCount "158"]
[EventDate "2021.03.31"]
[EventType "swiss"]
[EventCountry "ESP"]
[SourceTitle "playchess.com"]
[Source "ChessBase"]
[SourceQuality "1"]
[TimeControl "5400+30"]

1. e4 d6 2. d4 Nf6 3. Nc3 g6 4. Bg5 Bg7 5. e5 Nfd7 6. exd6 cxd6 7. Qd2 Nc6 8. Nf3 Nf6 9. O-O-O O-O 10. h4 h5 11. d5 Nb4 12. a3 Na6 13. Nd4 Nc5 14. f3 Bd7 15. Be2 (15. Bh6 $16) 15... b5 16. g4 Qb6 17. gxh5 Nxh5 18. Be3 b4 19. axb4 $19 Qxb4 20. Nb1 Qa4 21. b3 Qa2 22. Rdg1 Rfc8 23. Bc4 Rab8 24. c3 Qa1 25. Qc2 Kf8 26. Rh2 Bxd4 27. Bxd4 Bf5 28. Qb2 Qxb1+ 29. Qxb1 Bxb1 30. Kxb1 Nxb3 31. Bxb3 Rxb3+ 32. Rb2 Rxb2+ 33. Kxb2 Nf4 34. Bxa7 Nxd5 35. Rc1 Rc4 36. Bd4 e5 37. Kb3 Rc8 38. Bf2 Ke7 39. c4 Nf4 40. Rd1 Ne6 41. Be3 Rh8 42. Bf2 Rc8 43. Be3 Ng7 44. f4 Nf5 45. Bc1 Nd4+ 46. Kc3 Ne2+ 47. Kd3 Nxc1+ 48. Rxc1 Ke6 49. fxe5 dxe5 50. Ke4 Rh8 51. Rh1 f5+ 52. Ke3 f4+ 53. Ke4 Rd8 54. Rc1 Rd4+ 55. Kf3 Kf5 56. c5 e4+ 57. Kg2 Rd2+ 58. Kh3 Rd3+ 59. Kg2 Rd7 60. c6 Rc7 61. Rc5+ Kf6 62. Kf2 Ke6 63. Rg5 Kf6 64. Rc5 Kf7 65. Re5 Re7 66. c7 e3+ 67. Kf3 Rxc7 68. Kxf4 Rc4+ 69. Kxe3 Rxh4 70. Kf2 Kf6 71. Re1 Ra4 72. Kg1 Kg5 73. Rd1 Kf4 74. Rf1+ Kg3 75. Rc1 Ra3 76. Rd1 g5 77. Rc1 g4 78. Rd1 Kh3 79. Rc1 g3 1/2-1/2

[Event "V Open Semana Santa Alicante 2021"]
[Site "Alicante"]
[Date "2021.04.03"]
[Round "7.1"]
[White "Cuenca Jimenez, Jose Fernando"]
[Black "Narciso Dublan, Marc"]
[Result "1-0"]
[ECO "A11"]
[WhiteElo "2506"]
[BlackElo "2521"]
[Annotator "ChessBase"]
[PlyCount "135"]
[EventDate "2021.03.31"]
[EventType "swiss"]
[EventCountry "ESP"]
[SourceTitle "playchess.com"]
[Source "ChessBase"]
[SourceQuality "1"]
[TimeControl "5400+30"]

1. c4 {[%emt 0:00:00]} c6 {[%emt 0:00:00]} 2. d4 {[%emt 0:00:35]} d5 {[%emt 0:00:10]} 3. Nc3 {[%emt 0:00:31]} Nf6 {[%emt 0:00:59]} 4. e3 {[%emt 0:00:10]} Bf5 {[%emt 0:03:09]} 5. cxd5 cxd5 {[%emt 0:00:06]} 6. Qb3 {[%emt 0:02:30]} Bc8 {[%emt 0:00:06]} 7. Nf3 {[%emt 0:01:39]} e6 {[%emt 0:00:05]} 8. Bd3 {[%emt 0:05:58]} Be7 {[%emt 0:00:15]} 9. O-O {[%emt 0:00:19]} O-O {[%emt 0:00:37]} 10. Bd2 {[%emt 0:00:18]} Nc6 {[%emt 0:00:20]} 11. a3 {[%emt 0:04:27]} Bd7 {[%emt 0:04:06]} 12. Qa2 {[%emt 0:05:16]} Rc8 {[%emt 0:06:04]} 13. Rfc1 {[%emt 0:03:13]} h6 {[%emt 0:16:10]} 14. Rc2 {[%emt 0:11:49]} Qc7 {[%emt 0:13:21]} 15. b4 {[%emt 0:03:48]} a6 {[%emt 0:05:26]} 16. Qb3 {[%emt 0:16:33]} Qb8 {[%emt 0:02:30]} 17. Na4 {[%emt 0:01:03]} Na7 {[%emt 0:01:03]} 18. Nc5 {[%emt 0:06:06]} Bb5 {[%emt 0:01:15]} 19. a4 {[%emt 0:03:36]} Bxd3 {[%emt 0:00:41]} 20. Qxd3 {[%emt 0:00:10]} Rfd8 {[%emt 0:07:44]} 21. Be1 {[%emt 0:05:47]} Bd6 {[%emt 0:05:47]} 22. h3 {[%emt 0:05:48]} Nd7 {[%emt 0:08:34]} 23. Nd2 {[%emt 0:03:55]} Nc6 {[%emt 0:06:00]} 24. Ndb3 {[%emt 0:01:59]} Bxc5 {[%emt 0:00:40]} 25. bxc5 {[%emt 0:00:53]} Qc7 {[%emt 0:00:23]} 26. Rb1 {[%emt 0:03:25]} e5 {[%emt 0:00:35]} 27. Qc3 {[%emt 0:05:23]} Rb8 {[%emt 0:05:10]} 28. Rcb2 {[%emt 0:02:34]} Re8 {[%emt 0:01:44]} 29. Bd2 {[%emt 0:01:23]} Re6 {[%emt 0:04:46]} 30. Na5 {[%emt 0:01:01]} exd4 {[%emt 0:00:44]} 31. exd4 {[%emt 0:00:08]} Re4 {[%emt 0:05:00]} 32. Nxc6 {[%emt 0:04:37]} Qxc6 {[%emt 0:00:37]} 33. Be3 {[%emt 0:01:01]} g5 {[%emt 0:00:58]} 34. Rb4 {[%emt 0:00:28]} f5 {[%emt 0:01:01]} 35. f3 {[%emt 0:00:25]} Ree8 {[%emt 0:00:41]} 36. Qb3 {[%emt 0:00:05]} Nf8 {[%emt 0:00:36]} 37. Rb6 {[%emt 0:00:23]} Qd7 {[%emt 0:00:24]} 38. Bf2 {[%emt 0:00:26]} Ne6 {[%emt 0:00:36]} 39. Rd6 {[%emt 0:00:39]} Qf7 {[%emt 0:00:25]} 40. Qxd5 {[%emt 0:00:13]} Nf4 {[%emt 0:00:38]} 41. Qxf7+ {[%emt 0:00:26]} Kxf7 {[%emt 0:00:02]} 42. Rd7+ {[%emt 0:01:03]} Ke6 {[%emt 0:01:00]} 43. Rdxb7 {[%emt 0:00:28]} Rxb7 {[%emt 0:00:22]} 44. Rxb7 {[%emt 0:00:02]} Kd5 {[%emt 0:00:38]} 45. Rd7+ {[%emt 0:00:47]} Kc4 {[%emt 0:00:06]} 46. h4 {[%emt 0:01:03]} gxh4 {[%emt 0:00:23]} 47. c6 {[%emt 0:00:31]} Rc8 {[%emt 0:00:45]} 48. Rd6 {[%emt 0:00:26]} h3 {[%emt 0:00:14]} 49. gxh3 {[%emt 0:00:37]} h5 {[%emt 0:00:56]} 50. h4 a5 51. Kf1 {[%emt 0:00:58]} Nd5 {[%emt 0:00:58]} 52. Rh6 {[%emt 0:00:17]} f4 {[%emt 0:00:09]} 53. Rxh5 {[%emt 0:00:44]} Rxc6 {[%emt 0:00:56]} 54. Re5 {[%emt 0:00:00]} Ra6 {[%emt 0:00:24]} 55. h5 {[%emt 0:01:01]} Nb4 {[%emt 0:00:07]} 56. Rc5+ Kb3 57. Rf5 {[%emt 0:01:01]} Kxa4 {[%emt 0:00:56]} 58. d5 {[%emt 0:00:05]} Kb3 {[%emt 0:00:30]} 59. d6 {[%emt 0:00:34]} a4 {[%emt 0:00:27]} 60. Rf6 {[%emt 0:00:50]} Ra8 {[%emt 0:01:08]} 61. d7 {[%emt 0:00:19]} a3 {[%emt 0:00:30]} 62. Bd4 {[%emt 0:00:37]} Kc4 {[%emt 0:00:30]} 63. Rd6 {[%emt 0:00:22]} Rd8 {[%emt 0:00:30]} 64. Bf6 {[%emt 0:00:25]} a2 {[%emt 0:00:04]} 65. Rd1 {[%emt 0:00:37]} Nd5 {[%emt 0:00:32]} 66. Bxd8 {[%emt 0:00:35]} Ne3+ {[%emt 0:00:01]} 67. Ke2 {[%emt 0:00:29]} Nxd1 {[%emt 0:00:06]} 68. Bf6 {[%emt 0:00:18]} 1-0

[Event "V Open Semana Santa Alicante 2021"]
[Site "Alicante"]
[Date "2021.04.03"]
[Round "7.2"]
[White "Garcia Gimenez, Santiago"]
[Black "Santos Ruiz, Miguel"]
[Result "0-1"]
[ECO "B90"]
[WhiteElo "2266"]
[BlackElo "2592"]
[Annotator "ChessBase"]
[PlyCount "66"]
[EventDate "2021.03.31"]
[EventType "swiss"]
[EventCountry "ESP"]
[SourceTitle "playchess.com"]
[Source "ChessBase"]
[SourceQuality "1"]
[TimeControl "5400+30"]

1. e4 {[%emt 0:03:06]} c5 {[%emt 0:01:25]} 2. Nf3 {[%emt 0:00:16]} d6 {[%emt 0:00:04]} 3. d4 {[%emt 0:00:13]} cxd4 {[%emt 0:00:04]} 4. Nxd4 {[%emt 0:00:06]} Nf6 {[%emt 0:00:04]} 5. Nc3 {[%emt 0:00:11]} a6 {[%emt 0:00:02]} 6. a4 {[%emt 0:00:09]} e6 {[%emt 0:00:27]} 7. Be2 {[%emt 0:00:49]} Be7 {[%emt 0:00:16]} 8. Be3 {[%emt 0:00:23]} Qc7 {[%emt 0:00:13]} 9. O-O {[%emt 0:01:25]} b6 {[%emt 0:00:28]} 10. f4 {[%emt 0:04:25]} Bb7 {[%emt 0:01:54]} 11. Bf3 {[%emt 0:00:17]} Nbd7 {[%emt 0:08:43]} 12. Re1 {[%emt 0:02:20]} g6 {[%emt 0:10:19]} 13. Nb3 {[%emt 0:07:07]} O-O {[%emt 0:06:33]} 14. Kh1 {[%emt 0:09:53]} Rac8 {[%emt 0:08:34]} 15. Qd2 {[%emt 0:05:48]} Rfe8 {[%emt 0:07:25]} 16. g3 {[%emt 0:00:47]} b5 {[%emt 0:08:26]} 17. axb5 {[%emt 0:01:16]} axb5 {[%emt 0:00:03]} 18. Ra7 {[%emt 0:00:14]} Qb8 {[%emt 0:03:37]} 19. Qg2 {[%emt 0:04:10]} b4 {[%emt 0:08:06]} 20. Nd1 {[%emt 0:15:44]} e5 {[%emt 0:03:36]} 21. Ra5 {[%emt 0:11:07]} d5 {[%emt 0:04:24]} 22. exd5 {[%emt 0:00:08]} e4 {[%emt 0:00:12]} 23. Be2 {[%emt 0:00:06]} Nxd5 {[%emt 0:02:29]} 24. Rb5 {[%emt 0:04:04]} Qc7 {[%emt 0:01:38]} 25. Na5 {[%emt 0:03:05]} Ba8 {[%emt 0:01:11]} 26. Bc4 {[%emt 0:00:52]} N7f6 {[%emt 0:04:50]} 27. Bb3 {[%emt 0:03:13]} Red8 {[%emt 0:01:47]} 28. Nc4 {[%emt 0:01:34]} Ng4 {[%emt 0:01:43]} 29. h3 {[%emt 0:05:55]} Bc6 {[%emt 0:01:33]} 30. Rxd5 {[%emt 0:00:31]} Bxd5 {[%emt 0:01:07]} 31. Nb6 {[%emt 0:04:20]} Bxb3 {[%emt 0:01:08]} 32. Nxc8 {[%emt 0:00:09]} Qxc8 {[%emt 0:02:09]} 33. cxb3 {[%emt 0:00:08]} Rxd1 {[%emt 0:00:05]} 0-1

[Event "V Open Semana Santa Alicante 2021"]
[Site "Alicante"]
[Date "2021.04.03"]
[Round "7.3"]
[White "Movsziszian, Karen"]
[Black "Ibanez Aullana, Ramon"]
[Result "1-0"]
[ECO "A06"]
[WhiteElo "2471"]
[BlackElo "2276"]
[Annotator "ChessBase"]
[PlyCount "61"]
[EventDate "2021.03.31"]
[EventType "swiss"]
[EventCountry "ESP"]
[SourceTitle "playchess.com"]
[Source "ChessBase"]
[SourceQuality "1"]
[TimeControl "5400+30"]

1. g3 {[%emt 0:00:00]} d5 {[%emt 0:01:02]} 2. Nf3 {[%emt 0:00:00]} c6 {[%emt 0:00:49]} 3. Bg2 {[%emt 0:00:02]} Bg4 {[%emt 0:00:44]} 4. b3 {[%emt 0:02:59]} Nd7 {[%emt 0:01:03]} 5. Bb2 {[%emt 0:00:02]} e6 {[%emt 0:00:45]} 6. O-O {[%emt 0:00:05]} Bh5 {[%emt 0:09:55]} 7. d3 {[%emt 0:01:48]} f5 {[%emt 0:01:07]} 8. c4 {[%emt 0:04:10]} h6 {[%emt 0:02:40]} 9. Nbd2 {[%emt 0:05:05]} Ngf6 {[%emt 0:00:36]} 10. Nd4 {[%emt 0:00:37]} Bf7 {[%emt 0:05:10]} 11. cxd5 {[%emt 0:01:40]} cxd5 {[%emt 0:00:10]} 12. e4 {[%emt 0:00:05]} fxe4 {[%emt 0:06:03]} 13. dxe4 {[%emt 0:00:48]} Be7 {[%emt 0:01:56]} 14. exd5 {[%emt 0:05:21]} exd5 {[%emt 0:00:39]} 15. Qe2 {[%emt 0:00:26]} O-O {[%emt 0:01:09]} 16. Ne6 {[%emt 0:00:08]} Qe8 {[%emt 0:04:17]} 17. Nc7 {[%emt 0:06:52]} Qd8 {[%emt 0:00:02]} 18. Nxa8 {[%emt 0:00:05]} Bd6 {[%emt 0:02:22]} 19. Nf3 {[%emt 0:01:09]} Qxa8 {[%emt 0:02:10]} 20. Nd4 {[%emt 0:00:24]} Re8 {[%emt 0:00:35]} 21. Qc2 {[%emt 0:01:01]} Rc8 {[%emt 0:12:04]} 22. Qd2 {[%emt 0:02:51]} Qb8 {[%emt 0:09:56]} 23. Rfe1 {[%emt 0:04:00]} Re8 {[%emt 0:01:29]} 24. Nf5 {[%emt 0:01:02]} Bf8 {[%emt 0:05:14]} 25. Rxe8 {[%emt 0:00:05]} Qxe8 {[%emt 0:00:13]} 26. Re1 {[%emt 0:00:05]} Qd8 {[%emt 0:00:40]} 27. Ne3 {[%emt 0:05:23]} Ne4 {[%emt 0:11:44]} 28. Bxe4 {[%emt 0:00:20]} dxe4 {[%emt 0:00:10]} 29. Rd1 {[%emt 0:00:04]} Be6 {[%emt 0:00:21]} 30. Qd4 {[%emt 0:00:05]} Qf6 {[%emt 0:02:42]} 31. Qxd7 {[%emt 0:00:47]} 1-0

[Event "V Open Semana Santa Alicante 2021"]
[Site "Alicante"]
[Date "2021.04.03"]
[Round "7.4"]
[White "Lopez Varela, Pablo"]
[Black "Serarols Mabras, Bernat"]
[Result "0-1"]
[ECO "A06"]
[WhiteElo "2209"]
[BlackElo "2358"]
[Annotator "ChessBase"]
[PlyCount "134"]
[EventDate "2021.03.31"]
[EventType "swiss"]
[EventCountry "ESP"]
[SourceTitle "playchess.com"]
[Source "ChessBase"]
[SourceQuality "1"]
[TimeControl "5400+30"]

1. Nf3 {[%emt 0:00:00]} d5 {[%emt 0:00:04]} 2. g3 {[%emt 0:00:00]} Nd7 {[%emt 0:00:04]} 3. d3 {[%emt 0:00:05]} e5 {[%emt 0:01:56]} 4. Bg2 {[%emt 0:00:12]} Ngf6 {[%emt 0:04:10]} 5. O-O {[%emt 0:00:05]} Bd6 {[%emt 0:00:15]} 6. Nc3 {[%emt 0:03:12]} c6 {[%emt 0:05:39]} 7. e4 {[%emt 0:00:30]} O-O {[%emt 0:02:13]} 8. exd5 {[%emt 0:02:41]} cxd5 {[%emt 0:00:58]} 9. a4 {[%emt 0:13:44]} Re8 {[%emt 0:15:26]} 10. Nd2 {[%emt 0:03:02]} d4 {[%emt 0:05:06]} 11. Nce4 {[%emt 0:09:10]} Bc7 {[%emt 0:02:19]} 12. a5 {[%emt 0:15:57]} Rb8 {[%emt 0:01:44]} 13. h4 {[%emt 0:04:50]} h6 {[%emt 0:13:07]} 14. Bf3 {[%emt 0:10:15]} Nxe4 {[%emt 0:06:31]} 15. Bxe4 {[%emt 0:02:03]} Nf6 {[%emt 0:00:42]} 16. Bf3 {[%emt 0:02:44]} Bh3 {[%emt 0:05:46]} 17. Bg2 {[%emt 0:00:17]} Bxg2 {[%emt 0:00:12]} 18. Kxg2 {[%emt 0:00:01]} Bxa5 {[%emt 0:04:03]} 19. Nc4 {[%emt 0:00:17]} Bb6 {[%emt 0:01:59]} 20. Re1 {[%emt 0:00:39]} Qd5+ {[%emt 0:03:18]} 21. f3 {[%emt 0:00:02]} Bc5 {[%emt 0:03:06]} 22. Kh2 {[%emt 0:05:29]} Rbc8 {[%emt 0:04:17]} 23. Rg1 {[%emt 0:04:09]} b5 {[%emt 0:03:47]} 24. Nd2 {[%emt 0:00:03]} Bb6 {[%emt 0:00:07]} 25. Rg2 {[%emt 0:00:27]} Qc6 {[%emt 0:00:32]} 26. Ne4 {[%emt 0:01:05]} Nd5 {[%emt 0:04:41]} 27. g4 {[%emt 0:00:15]} Ne3 {[%emt 0:00:16]} 28. Bxe3 {[%emt 0:00:08]} dxe3 {[%emt 0:00:02]} 29. h5 {[%emt 0:09:06]} f6 {[%emt 0:02:04]} 30. Re2 {[%emt 0:01:16]} Qd5 {[%emt 0:01:37]} 31. Qb1 {[%emt 0:00:05]} Red8 {[%emt 0:00:32]} 32. Kg2 {[%emt 0:01:15]} a5 {[%emt 0:01:47]} 33. Kf1 {[%emt 0:00:06]} Kh8 {[%emt 0:00:42]} 34. Qa2 {[%emt 0:00:54]} Qd7 {[%emt 0:01:11]} 35. Ng3 {[%emt 0:00:30]} a4 {[%emt 0:00:46]} 36. Nf5 {[%emt 0:00:14]} Rc6 {[%emt 0:00:25]} 37. Nh4 {[%emt 0:00:32]} Rdc8 {[%emt 0:00:12]} 38. b3 {[%emt 0:01:56]} Bd4 {[%emt 0:02:43]} 39. Rb1 {[%emt 0:00:20]} Qd5 {[%emt 0:00:42]} 40. Kg2 {[%emt 0:03:13]} Kh7 {[%emt 0:00:14]} 41. Ng6 {[%emt 0:00:25]} Qf7 {[%emt 0:01:26]} 42. Nh4 a3 43. c4 b4 44. Rf1 Qb7 45. Kh3 Rd8 46. Qb1 Kg8 47. Nf5 Ra6 48. f4 exf4 49. Rxf4 a2 50. Rxa2 Rxa2 51. Qxa2 Qh1+ 52. Kg3 Ra8 53. Qe2 Be5 54. Nxe3 Ra1 55. Ng2 Rf1 56. d4 Bxf4+ 57. Nxf4 Re1 58. Qf3 Qxf3+ 59. Kxf3 Rb1 60. Nd3 Rxb3 61. Ke3 Rc3 62. c5 b3 63. Kd2 Rc2+ 64. Kd1 Kf7 65. d5 Ke7 66. c6 Rc4 67. Kd2 Kd6 0-1

[Event "V Open Semana Santa Alicante 2021"]
[Site "Alicante"]
[Date "2021.04.03"]
[Round "7.5"]
[White "Yuffa, Daniil"]
[Black "Macias Pino, Diego"]
[Result "1-0"]
[ECO "A20"]
[WhiteElo "2584"]
[BlackElo "2274"]
[Annotator "ChessBase"]
[PlyCount "53"]
[EventDate "2021.03.31"]
[EventType "swiss"]
[EventCountry "ESP"]
[SourceTitle "playchess.com"]
[Source "ChessBase"]
[SourceQuality "1"]
[TimeControl "5400+30"]

1. c4 {[%emt 0:00:00]} e5 {[%emt 0:00:00]} 2. g3 {[%emt 0:00:00]} Nf6 {[%emt 0:02:07]} 3. Bg2 {[%emt 0:00:00]} c6 {[%emt 0:00:04]} 4. Nf3 {[%emt 0:00:00]} e4 {[%emt 0:00:08]} 5. Nd4 {[%emt 0:00:00]} Qb6 {[%emt 0:00:12]} 6. Nb3 {[%emt 0:00:21]} d5 {[%emt 0:04:41]} 7. cxd5 {[%emt 0:00:15]} cxd5 {[%emt 0:00:07]} 8. O-O {[%emt 0:01:01]} Bf5 {[%emt 0:03:40]} 9. d3 {[%emt 0:01:07]} Be7 {[%emt 0:00:58]} 10. Nc3 {[%emt 0:01:41]} exd3 {[%emt 0:00:27]} 11. Nxd5 {[%emt 0:06:59]} Nxd5 {[%emt 0:16:52]} 12. Bxd5 {[%emt 0:00:43]} O-O {[%emt 0:01:25]} 13. exd3 {[%emt 0:01:09]} Nc6 {[%emt 0:07:12]} 14. Be3 {[%emt 0:00:16]} Qb5 {[%emt 0:00:42]} 15. Bc4 {[%emt 0:03:38]} Qe5 {[%emt 0:05:49]} 16. d4 {[%emt 0:00:29]} Qc7 {[%emt 0:02:55]} 17. Rc1 {[%emt 0:03:17]} Bh3 {[%emt 0:02:20]} 18. Re1 {[%emt 0:01:56]} Bb4 {[%emt 0:02:19]} 19. Bf4 {[%emt 0:06:22]} Bd6 {[%emt 0:01:11]} 20. Bxd6 {[%emt 0:01:17]} Qxd6 {[%emt 0:00:03]} 21. Qh5 {[%emt 0:00:33]} Bd7 {[%emt 0:03:10]} 22. Re4 {[%emt 0:03:57]} Rac8 {[%emt 0:06:41]} 23. Rf4 {[%emt 0:03:12]} Qe7 {[%emt 0:05:25]} 24. Nc5 {[%emt 0:06:52]} Be8 {[%emt 0:01:49]} 25. Ne4 {[%emt 0:03:56]} h6 {[%emt 0:06:40]} 26. Nf6+ {[%emt 0:00:57]} Kh8 {[%emt 0:00:10]} 27. Qf5 {[%emt 0:01:01]} 1-0

[Event "V Open Semana Santa Alicante 2021"]
[Site "Alicante"]
[Date "2021.04.03"]
[Round "7.6"]
[White "Del Rio De Angelis, Salvador G."]
[Black "Moral Garcia, Serafin"]
[Result "1-0"]
[ECO "D91"]
[WhiteElo "2510"]
[BlackElo "2239"]
[Annotator "ChessBase"]
[PlyCount "65"]
[EventDate "2021.03.31"]
[EventType "swiss"]
[EventCountry "ESP"]
[SourceTitle "playchess.com"]
[Source "ChessBase"]
[SourceQuality "1"]
[TimeControl "5400+30"]

1. d4 {[%emt 0:00:00]} Nf6 {[%emt 0:00:00]} 2. c4 {[%emt 0:00:00]} g6 {[%emt 0:00:00]} 3. Nc3 {[%emt 0:00:00]} d5 {[%emt 0:00:28]} 4. Nf3 {[%emt 0:00:10]} Bg7 {[%emt 0:00:16]} 5. Bg5 {[%emt 0:00:07]} Ne4 {[%emt 0:01:20]} 6. Bf4 {[%emt 0:00:09]} Nxc3 {[%emt 0:02:54]} 7. bxc3 {[%emt 0:00:22]} dxc4 {[%emt 0:00:28]} 8. e3 {[%emt 0:00:32]} b5 {[%emt 0:05:24]} 9. a4 {[%emt 0:01:04]} c6 {[%emt 0:03:45]} 10. Qb1 {[%emt 0:00:26]} Bd7 {[%emt 0:11:59]} 11. Bxc4 {[%emt 0:03:16]} Qb6 {[%emt 0:06:01]} 12. Bd3 {[%emt 0:06:00]} Na6 {[%emt 0:04:57]} 13. O-O {[%emt 0:02:23]} O-O {[%emt 0:00:51]} 14. Qb2 {[%emt 0:12:38]} Nc7 {[%emt 0:01:37]} 15. Rfb1 {[%emt 0:00:47]} a6 {[%emt 0:02:32]} 16. Ne5 {[%emt 0:08:37]} Rfd8 {[%emt 0:07:54]} 17. axb5 {[%emt 0:06:05]} cxb5 {[%emt 0:01:46]} 18. c4 {[%emt 0:01:57]} Be8 {[%emt 0:02:11]} 19. Be4 {[%emt 0:02:54]} Ra7 {[%emt 0:06:56]} 20. Bg3 {[%emt 0:02:22]} f6 {[%emt 0:03:10]} 21. Nf3 {[%emt 0:02:17]} Bf7 {[%emt 0:05:52]} 22. c5 {[%emt 0:03:20]} Qe6 {[%emt 0:00:47]} 23. Bc2 {[%emt 0:00:06]} Qc6 {[%emt 0:00:29]} 24. Qb4 {[%emt 0:03:43]} Rda8 {[%emt 0:05:16]} 25. Qa5 {[%emt 0:00:19]} e5 {[%emt 0:03:56]} 26. Qb6 {[%emt 0:05:43]} Bd5 {[%emt 0:02:12]} 27. dxe5 {[%emt 0:05:55]} Rb7 {[%emt 0:02:58]} 28. Qxc6 {[%emt 0:00:30]} Bxc6 29. Rd1 {[%emt 0:07:47]} Ne8 {[%emt 0:05:14]} 30. Bb3+ {[%emt 0:01:29]} Kf8 {[%emt 0:00:14]} 31. Nd4 {[%emt 0:00:06]} Rc7 {[%emt 0:00:51]} 32. Ne6+ {[%emt 0:00:16]} Ke7 {[%emt 0:00:01]} 33. Nxg7 {[%emt 0:00:21]} 1-0

[Event "V Open Semana Santa Alicante 2021"]
[Site "Alicante"]
[Date "2021.04.03"]
[Round "7.7"]
[White "Ladron De Guevara Pinto, Paolo"]
[Black "Motos Abellan, Daniel"]
[Result "1/2-1/2"]
[ECO "C00"]
[WhiteElo "2440"]
[BlackElo "2166"]
[Annotator "ChessBase"]
[PlyCount "80"]
[EventDate "2021.03.31"]
[EventType "swiss"]
[EventCountry "ESP"]
[SourceTitle "playchess.com"]
[Source "ChessBase"]
[SourceQuality "1"]
[TimeControl "5400+30"]

1. e4 {[%emt 0:00:00]} e6 {[%emt 0:05:40]} 2. d4 {[%emt 0:00:00]} b6 {[%emt 0:02:07]} 3. Nf3 {[%emt 0:04:21]} Bb7 {[%emt 0:00:10]} 4. Bd3 {[%emt 0:00:13]} Nf6 {[%emt 0:00:06]} 5. Qe2 {[%emt 0:00:20]} Be7 {[%emt 0:00:06]} 6. O-O {[%emt 0:04:20]} d5 {[%emt 0:00:25]} 7. e5 {[%emt 0:00:07]} Nfd7 {[%emt 0:00:08]} 8. c3 {[%emt 0:01:44]} c5 {[%emt 0:00:04]} 9. Nbd2 {[%emt 0:01:35]} Nc6 {[%emt 0:00:16]} 10. a3 {[%emt 0:00:33]} Qc7 {[%emt 0:00:14]} 11. b4 {[%emt 0:02:41]} c4 {[%emt 0:02:34]} 12. Bc2 {[%emt 0:00:16]} O-O-O {[%emt 0:00:23]} 13. b5 {[%emt 0:04:01]} Na5 {[%emt 0:00:25]} 14. a4 {[%emt 0:03:12]} Rde8 {[%emt 0:03:27]} 15. Re1 {[%emt 0:07:37]} Kb8 {[%emt 0:01:50]} 16. Nf1 {[%emt 0:03:47]} Ka8 {[%emt 0:03:30]} 17. Ng3 {[%emt 0:07:57]} f5 {[%emt 0:02:33]} 18. exf6 {[%emt 0:02:05]} Bxf6 {[%emt 0:00:09]} 19. Ne5 {[%emt 0:00:35]} Bxe5 {[%emt 0:01:23]} 20. dxe5 {[%emt 0:00:14]} Nc5 {[%emt 0:00:07]} 21. Ba3 {[%emt 0:12:11]} Qf7 {[%emt 0:14:33]} 22. Qe3 {[%emt 0:03:15]} Rc8 {[%emt 0:08:41]} 23. Bb4 {[%emt 0:05:47]} Rhf8 {[%emt 0:06:59]} 24. Ne2 {[%emt 0:01:33]} g5 {[%emt 0:04:28]} 25. Nd4 {[%emt 0:01:40]} h5 {[%emt 0:01:09]} 26. Rf1 {[%emt 0:00:25]} Rg8 {[%emt 0:13:34]} 27. f3 {[%emt 0:02:35]} Rce8 {[%emt 0:03:10]} 28. Rab1 {[%emt 0:03:06]} Qf4 {[%emt 0:02:36]} 29. Qe2 {[%emt 0:05:23]} h4 {[%emt 0:02:48]} 30. h3 {[%emt 0:00:45]} Qg3 {[%emt 0:01:35]} 31. Ba3 {[%emt 0:04:41]} Nd3 {[%emt 0:01:49]} 32. Kh1 {[%emt 0:03:32]} Nf4 {[%emt 0:04:21]} 33. Qf2 {[%emt 0:00:40]} Qxf2 {[%emt 0:00:35]} 34. Rxf2 {[%emt 0:00:06]} Kb8 {[%emt 0:00:28]} 35. Rd2 {[%emt 0:03:04]} Kc8 {[%emt 0:00:41]} 36. Bb4 {[%emt 0:02:29]} Ba8 {[%emt 0:00:47]} 37. Kg1 {[%emt 0:00:58]} Rg7 {[%emt 0:00:57]} 38. Bxa5 {[%emt 0:03:54]} bxa5 {[%emt 0:00:06]} 39. Kf2 {[%emt 0:00:42]} Kb7 {[%emt 0:02:41]} 40. Ne2 {[%emt 0:00:41]} Kb6 {[%emt 0:02:14]} 1/2-1/2